lending/lending_fUSD_20240128
["ID","MTS","AMOUNT","RATE_DAILY","PERIOD"]
[312894491,1706430638002,-159.68440978,0.00022874,2]
[312894493,1706430638011,-215.63475234,0.00022875,2]
[312894495,1706430638020,-472.97659907,0.00022898,2]
[312894497,1706430638029,-379.22770306,0.00022898,2]
[312894499,1706430638039,-356.22093144,0.00022898,2]
[312894501,1706430638047,-191.15890141,0.00022898,2]
[312894503,1706430638057,-2146.10378163,0.00022898,2]
[312894505,1706430638066,-304.73710127,0.00022898,2]
[312894507,1706430638075,-877.31457911,0.00022898,2]
[312894509,1706430638083,-1046.30174013,0.00022898,2]
[312894511,1706430638092,-257.0325133,0.00022898,2]
[312894513,1706430638102,-4492.19656681,0.00022898,2]
[312894515,1706430638111,-219.09279346,0.00022898,2]
[312894517,1706430638121,-279.66758209,0.00022898,2]
[312894519,1706430638130,-2180.72664687,0.00022898,2]
[312894520,1706430638140,-155.27228325,0.00022898,2]
[312894521,1706430638148,-340.5137748,0.00022898,2]
[312894522,1706430638157,-164.96152334,0.00022898,2]
[312894523,1706430638166,-849.7190247,0.00022898,2]
[312894524,1706430638175,-524.31366153,0.00022898,2]
[312894525,1706430638184,-177.89484315,0.00022898,2]
[312894526,1706430638193,-603.35,0.00022898,2]
[312894527,1706430638203,-354.87715265,0.00022898,2]
[312894528,1706430638212,-4281.30291557,0.00022898,2]
[312894529,1706430638221,-1456.97375323,0.00022899,2]
[312894531,1706430638230,-7699.75292425,0.000229,2]
[312894534,1706430638242,-40756.24577575,0.000229,2]
[312894536,1706430638251,-20790.67797536,0.000229,2]
[312894538,1706430638263,-2461.16702176,0.000229,2]
[312894544,1706430638306,-646.46491718,0.000229,2]
[312894644,1706430640092,-71272.6274857,0.000229,2]
[312894645,1706430640102,-151.58885071,0.000229,2]
[312894646,1706430640111,-159.68440978,0.000229,2]
[312894647,1706430640120,-5000.0,0.000229,2]
[312894648,1706430640129,-7839.47155409,0.000229,2]
[312894649,1706430640138,-1626.79084227,0.000229,2]
[312894650,1706430640148,-910.18817912,0.000229,2]
[312894651,1706430640157,-171.74,0.00022938,2]
[312894652,1706430640166,-244.5905475,0.00022998,2]
[312894653,1706430640176,-24394.97966401,0.00022998,2]
[312894654,1706430640185,-946.60101861,0.00022999,2]
[312894655,1706430640197,-204.84671022,0.00022999,2]
[312894656,1706430640207,-33826.26385058,0.00022999,2]
[312894657,1706430640217,-112294.82626033,0.00023,2]
[312894658,1706430640237,-1550.85846974,0.00023,2]
[312894659,1706430640249,-1572.90815554,0.00023,2]
[312894660,1706430640284,-1107.07125068,0.00023,2]
[312894661,1706430640810,-92438.89384571,0.00023,2]
[312894662,1706430640822,-1884.93114203,0.00023,2]
[312894663,1706430640833,-737.69105346,0.00023,2]
[312894664,1706430640844,-419.29496176,0.00023,2]
[312894665,1706430640870,-847.76,0.00023,2]
[312894666,1706430640881,-577.16574,0.00023,2]
[312894672,1706430641518,200.48724191,0.00021918,2]
[312894694,1706430642882,-2626.00472967,0.00023,2]
[312894695,1706430642894,-8494.5552,0.00023,2]
[312894710,1706430648069,-326.25316576,0.00022898,2]
[312894711,1706430648080,-2783.79982392,0.00022898,2]
[312894712,1706430648092,-1000.0,0.00022899,2]
[312894713,1706430648101,-519.31832041,0.00022899,2]
[312894714,1706430648115,-220.62869011,0.00023,2]
[312894715,1706430648127,-45750.00000007,0.00023,2]
[312894716,1706430648198,-258.24345965,0.00023,2]
[312894717,1706430649547,-585221.08339123,0.00023,2]
[312894718,1706430649560,-327.41294399,0.00023,2]
[312894719,1706430662455,2973.4833,0.00022418,2]
[312894720,1706430851539,180.49163236,0.00022499,2]
[312894721,1706430929400,163.25,0.00022075,2]
[312894722,1706430935480,250.0,0.0002198,2]
[312894723,1706430949940,166.08,0.00021894,2]
[312894724,1706430966324,402.45,0.00020014,2]
[312894725,1706430966527,402.45,0.00022278,2]
[312894726,1706430967484,250.0,0.00021932,2]
[312894727,1706431106687,647.37,0.00021935,2]
[312894728,1706431139544,486.95,0.00021935,2]
[312894729,1706431156727,327.8738,0.00022498,2]
[312894730,1706431284246,151.93,0.0002224,2]
[312894731,1706431284440,151.93,0.00022322,2]
[312894732,1706431284638,151.93,0.00022405,2]
[312894733,1706431284842,151.93,0.00022488,2]
[312894734,1706431322982,491.66,0.00021828,2]
[312894735,1706431374633,342.73,0.0002182,2]
[312894736,1706431385300,250.0,0.00021918,2]
[312894737,1706431404743,250.0,0.0002182,2]
[312894738,1706431442668,160.19,0.0002182,2]
[312894739,1706431457412,362.2,0.00019891,2]
[312894740,1706431457613,362.2,0.00022155,2]
[312894741,1706431537595,13402.79,0.00021991,2]
[312894742,1706431562168,840.62,0.00021816,2]
[312894743,1706431611568,6412.40210547,0.00021707,2]
[312894744,1706431612575,-2000.0,0.00022519,2]
[312894745,1706431612759,1992.9,0.00022308,2]
[312894746,1706431612797,624.61821592,0.00022078,2]
[312894747,1706431613771,-363.44647363,0.00022519,2]
[312894748,1706431616586,155.22193865,0.00022,2]
[312894749,1706431620655,155.72988971,0.00020698,2]
[312894750,1706431626214,482.1,0.00021828,2]
[312894751,1706431627325,155.59139412,0.00020698,2]
[312894752,1706431646131,687.91030389,0.00022519,2]
[312894753,1706431646151,916.45686596,0.00022519,2]
[312894754,1706431647193,1083.54313404,0.00021816,2]
[312894755,1706431647214,636.79567085,0.00021816,2]
[312894756,1706431684039,207.0,0.00022112,2]
[312894757,1706431695813,206.10617731,0.0002242,2]
[312894758,1706431697160,950.09815184,0.00020698,2]
[312894759,1706431697182,271.06865367,0.00020698,2]
[312894760,1706431700762,206.1061773,0.00022431,2]
[312894761,1706431705896,206.1061773,0.00022441,2]
[312894763,1706431717011,151.93,0.00022001,2]
[312894764,1706431717208,151.93,0.00022116,2]
[312894765,1706431717407,151.93,0.00022231,2]
[312894766,1706431717633,151.93,0.00022345,2]
[312894767,1706431717836,151.93,0.0002246,2]
[312894768,1706431721190,557.06899173,0.00020698,2]
[312894769,1706431721211,1442.93100827,0.00020698,2]
[312894770,1706431733576,2000.0,0.00020595,2]
[312894772,1706431811466,285.6,0.00022073,2]
[312894798,1706431831771,-279.82822608,0.00022517,2]
[312894801,1706431831782,-74.65506274,0.00022518,2]
[312894810,1706431831911,-2549.68462265,0.00022518,2]
[312894811,1706431831920,-165.52037904,0.0002252,2]
[312894812,1706431831929,-151.93,0.00022575,2]
[312894813,1706431831939,-306.97180835,0.00022598,2]
[312894814,1706431831948,-151.93,0.00022689,2]
[312894815,1706431831959,-150.0,0.00022766,2]
[312894816,1706431831968,-150.0,0.00022766,2]
[312894817,1706431831978,-43087.29438539,0.00022767,2]
[312894818,1706431831988,-8340.54778249,0.00022768,2]
[312894819,1706431831997,-151.93,0.00022804,2]
[312894820,1706431832007,-500.0,0.00022816,2]
[312894821,1706431832016,-800.0,0.00022816,2]
[312894822,1706431832025,-200.0,0.00022816,2]
[312894823,1706431832035,-180.49163233,0.00022837,2]
[312894824,1706431832045,-180.49163233,0.00022858,2]
[312894825,1706431832054,-180.49163233,0.00022879,2]
[312894826,1706431832066,-933.4637,0.00022899,2]
[312894827,1706431832075,-180.49163233,0.000229,2]
[312894828,1706431832087,-151.57324912,0.000229,2]
[312894829,1706431832097,-4649.5576,0.000229,2]
[312894831,1706431832107,-5000.0,0.000229,2]
[312894833,1706431832116,-798.72744633,0.000229,2]
[312894835,1706431832125,-812.7754651,0.000229,2]
[312894837,1706431832134,-840.62,0.00022907,2]
[312894839,1706431832144,-151.93,0.00022919,2]
[312894841,1706431832153,-2016.20080627,0.00022998,2]
[312894842,1706431832163,-445.498076,0.00022998,2]
[312894843,1706431832172,-252.20306896,0.00022999,2]
[312894844,1706431832182,-29012.57892317,0.00022999,2]
[312894846,1706431832192,-84934.22059711,0.00023,2]
[312894848,1706431832204,-3714.006,0.00023,2]
[312894849,1706431832216,-1020.88331608,0.00023,2]
[312894850,1706431832229,-1916.98708128,0.00023,2]
[312894852,1706431838641,-4245.84616659,0.00023,2]
[312894853,1706431838753,-1069.5,0.00023,2]
[312894854,1706431838766,-306.979227,0.00023,2]
[312894855,1706431838812,-6327.4465177,0.00023,2]
[312894993,1706431840363,-240514.80352441,0.00023,2]
[312894995,1706431840375,-342844.18346615,0.00023,2]
[312894997,1706431840386,-1000.0,0.00023,2]
[312895008,1706431840475,-142538.40679743,0.00023,2]
[312895015,1706431840534,-566.05,0.00023,2]
[312895084,1706431841241,-1230.36085123,0.00023,2]
[312895112,1706431842987,-10417.56556727,0.00023,2]
[312895113,1706431843104,-6099.54900341,0.00023,2]
[312895117,1706431845883,-282.29719995,0.00022999,2]
[312895118,1706431845893,-5505.47705226,0.00023,2]
[312895119,1706431845940,-5103.12280005,0.00023,2]
[312895120,1706431846218,-932.14062538,0.00023,2]
[312895123,1706431846229,-19173.18592911,0.00023,2]
[312895131,1706431863897,204.0,0.00022112,2]
[312895133,1706431894202,546.03140978,0.000225,2]
[312895135,1706431951374,340.9,0.00020921,2]
[312895139,1706432019676,353.12,0.00022,2]
[312895141,1706432047486,536.31,0.00021926,2]
[312895142,1706432050815,6390.27008349,0.0002,2]
[312895144,1706432070573,614.32,0.00021926,2]
[312895145,1706432124137,154.86,0.00022091,2]
[312895146,1706432124348,154.86,0.00022475,2]
[312895147,1706432143762,1384.62,0.00021913,2]
[312895148,1706432152672,181.46,0.00021913,2]
[312895149,1706432235046,238.0,0.00021902,2]
[312895150,1706432254626,250.0,0.00021918,2]
[312895151,1706432259626,250.0,0.00021902,2]
[312895152,1706432261426,676.76226745,0.00027,7]
[312895153,1706432343912,483.27,0.00021902,2]
[312895154,1706432404285,207.0,0.00026608,7]
[312895155,1706432433159,323.85,0.00019994,2]
[312895156,1706432433370,323.85,0.00022258,2]
[312895157,1706432440616,15051.69,0.00021911,2]
[312895158,1706432573979,504.37,0.000219,2]
[312895159,1706432620907,154.86,0.00022064,2]
[312895160,1706432638331,508.54,0.00021907,2]
[312895161,1706432644207,150.0,0.00022476,2]
[312895162,1706432659046,198.33,0.00021924,2]
[312895163,1706432679696,2000.0,0.00021924,2]
[312895164,1706432685269,250.0,0.00021924,2]
[312895165,1706432700826,2705.0,0.00021924,2]
[312895166,1706432764231,208.0,0.00022269,2]
[312895167,1706432764481,208.0,0.00026042,7]
[312895168,1706432809318,459.25,0.00022,2]
[312895170,1706432942559,305.64,0.00021019,2]
[312895177,1706433024669,178.6,0.00022012,2]
[312895180,1706433031997,-1072.84521683,0.00022526,2]
[312895181,1706433032007,-362.44210625,0.00022527,2]
[312895182,1706433032016,-183.10819196,0.00022799,2]
[312895183,1706433032026,-183.10819188,0.00022804,2]
[312895184,1706433032036,-109.37769865,0.0002281,2]
[312895185,1706433032052,-73.73049323,0.0002281,2]
[312895186,1706433032062,-183.10819188,0.00022815,2]
[312895187,1706433032071,-500.0,0.00022816,2]
[312895188,1706433032081,-200.0,0.00022816,2]
[312895189,1706433032090,-183.10819188,0.0002282,2]
[312895190,1706433032099,-183.10819188,0.00022826,2]
[312895191,1706433032108,-300.89141911,0.00022826,2]
[312895196,1706433034492,154.86,0.00022482,2]
[312895202,1706433038130,-803.36,0.00022826,2]
[312895203,1706433038185,-2566.85858089,0.00022826,2]
[312895204,1706433038194,-183.10819188,0.00022831,2]
[312895205,1706433038204,-183.10819188,0.00022836,2]
[312895206,1706433038213,-183.10819188,0.00022842,2]
[312895207,1706433038223,-183.10819188,0.00022847,2]
[312895208,1706433038232,-183.10819188,0.00022852,2]
[312895209,1706433038242,-183.10819188,0.00022857,2]
[312895210,1706433038251,-183.10819188,0.00022863,2]
[312895211,1706433038260,-183.10819188,0.00022868,2]
[312895212,1706433038269,-183.10819188,0.00022873,2]
[312895213,1706433038279,-183.10819188,0.00022879,2]
[312895214,1706433038288,-183.10819188,0.00022884,2]
[312895215,1706433038297,-183.10819188,0.00022889,2]
[312895216,1706433038307,-300.0,0.00022899,2]
[312895217,1706433038317,-150.0,0.00022899,2]
[312895218,1706433038330,-22335.3617,0.000229,2]
[312895219,1706433038341,-1491.22493872,0.000229,2]
[312895220,1706433038351,-151.5732491,0.000229,2]
[312895222,1706433038361,-5000.0,0.000229,2]
[312895224,1706433038370,-155.92152823,0.000229,2]
[312895226,1706433038380,-504.37,0.00022995,2]
[312895228,1706433038389,-156.79778886,0.00022998,2]
[312895230,1706433038399,-633.84130694,0.00022998,2]
[312895232,1706433038409,-204.28991244,0.00022998,2]
[312895234,1706433038419,-1093.03891312,0.00022998,2]
[312895237,1706433038428,-7293.27326638,0.00022999,2]
[312895238,1706433038437,-499.99,0.00022999,2]
[312895241,1706433038447,-3303.45578245,0.00022999,2]
[312895243,1706433038456,-660.0,0.00023,2]
[312895244,1706433038465,-4009338.66084663,0.00023,2]
[312895453,1706433040535,-1532.52828786,0.00023,2]
[312895455,1706433040547,-444.94546264,0.00023,2]
[312895461,1706433040591,-1006.73499994,0.00023,2]
[312895548,1706433043002,-183.10819188,0.00022895,2]
[312895549,1706433043012,-221.13309393,0.00022999,2]
[312895552,1706433043164,-3082.32268852,0.00022999,2]
[312895553,1706433043173,-9210.26005123,0.00023,2]
[312895554,1706433043185,-11300.39217003,0.00023,2]
[312895555,1706433043220,-12215.60190326,0.00023,2]
[312895556,1706433043231,-26198.05410172,0.00023,2]
[312895557,1706433043243,-36484.54421414,0.00023,2]
[312895558,1706433043284,-9940.13693686,0.00023,2]
[312895559,1706433043340,-307.30874396,0.00023,2]
[312895578,1706433046018,-433.89890797,0.00022999,2]
[312895585,1706433046074,-490.39067912,0.00022999,2]
[312895587,1706433046085,-147.67273212,0.00022999,2]
[312895589,1706433046096,-1090.01413332,0.00022999,2]
[312895591,1706433046105,-597.0,0.00023,2]
[312895593,1706433046115,-7265.3347495,0.00023,2]
[312895596,1706433046131,-2083.62660607,0.00023,2]
[312895598,1706433046142,-7585.4943997,0.00023,2]
[312895604,1706433046188,-319.31715993,0.00023,2]
[312895606,1706433046199,-1089.0,0.00023,2]
[312895611,1706433046244,-1773.7138455,0.00023,2]
[312895612,1706433046300,-5667.71773761,0.00023,2]
[312895621,1706433066978,437.8206923,0.00022308,2]
[312895625,1706433358695,-542.06624197,0.00022764,2]
[312895626,1706433358717,-300.0,0.00022766,2]
[312895627,1706433358740,-150.0,0.00022766,2]
[312895628,1706433358761,-150.0,0.00022766,2]
[312895629,1706433358785,-9237.40599734,0.00022767,2]
[312895630,1706433358807,-282.31225864,0.00022768,2]
[312895631,1706433358829,-842.0,0.0002277,2]
[312895632,1706433358851,-500.0,0.00022816,2]
[312895633,1706433358873,-500.0,0.00022816,2]
[312895634,1706433358895,-200.0,0.00022816,2]
[312895635,1706433358917,-159.53,0.0002285,2]
[312895636,1706433358942,-183.10819188,0.000229,2]
[312895637,1706433358964,-1495.4441,0.000229,2]
[312895638,1706433358987,-6723.7595,0.000229,2]
[312895639,1706433359009,-5000.0,0.000229,2]
[312895640,1706433359154,-1278.15478966,0.000229,2]
[312895641,1706433359177,-151.55764746,0.000229,2]
[312895642,1706433359200,-230.21557088,0.000229,2]
[312895643,1706433359223,-1808.59703623,0.000229,2]
[312895644,1706433359245,-634.66694592,0.000229,2]
[312895645,1706433359267,-634.66694592,0.000229,2]
[312895646,1706433359289,-338.43,0.00022907,2]
[312895647,1706433359310,-25902.84197604,0.00022998,2]
[312895648,1706433359332,-1507.22261371,0.00022998,2]
[312895649,1706433359354,-157.47389592,0.00022998,2]
[312895650,1706433359380,-1079.96091476,0.00022998,2]
[312895651,1706433359402,-172.92570118,0.00022999,2]
[312895652,1706433359427,-4388.16607357,0.00022999,2]
[312895653,1706433359449,-177.3862626,0.00022999,2]
[312895654,1706433359472,-362.17101263,0.00022999,2]
[312895655,1706433359496,-159.25200858,0.00022999,2]
[312895656,1706433359519,-534.0,0.00023,2]
[312895657,1706433359543,-1434216.68431511,0.00023,2]
[312895661,1706433412544,-508.98275522,0.000229,2]
[312895662,1706433412568,-5000.0,0.000229,2]
[312895663,1706433412589,-153.47704726,0.000229,2]
[312895664,1706433412612,-194337.54019752,0.00023,2]
[312895669,1706433501399,-100000.0,0.00023,2]
[312895672,1706433535336,896.0336,0.000229,90]
[312895680,1706433936206,990.0,0.00023,7]
[312895681,1706433936454,167.45662953,0.00023,7]
[312895682,1706434006002,154.28,0.00022065,2]
[312895683,1706434039205,250.0,0.00021886,2]
[312895684,1706434050582,178.6,0.00021886,2]
[312895685,1706434095765,169.21,0.00021886,2]
[312895707,1706434232354,-154.28,0.0002264,2]
[312895708,1706434232365,-331.89,0.00022709,2]
[312895709,1706434232375,-160.01317644,0.00022716,2]
[312895710,1706434232384,-160.01317636,0.00022726,2]
[312895711,1706434232394,-154.41403763,0.00022735,2]
[312895712,1706434232409,-5.59913873,0.00022735,2]
[312895713,1706434232418,-160.01317636,0.00022745,2]
[312895714,1706434232428,-160.01317636,0.00022755,2]
[312895715,1706434232437,-160.01317636,0.00022764,2]
[312895716,1706434232446,-160.01317636,0.00022774,2]
[312895717,1706434232456,-160.01317636,0.00022784,2]
[312895718,1706434232465,-96.51497947,0.00022793,2]
[312895720,1706434232481,-63.49819689,0.00022793,2]
[312895721,1706434232490,-383.41267562,0.000228,2]
[312895722,1706434232499,-160.01317636,0.00022803,2]
[312895723,1706434232507,-160.01317636,0.00022813,2]
[312895733,1706434232652,-800.0,0.00022815,2]
[312895735,1706434232662,-500.0,0.00022816,2]
[312895736,1706434232671,-24.35298153,0.00022816,2]
[312895766,1706434238425,-175.64701847,0.00022816,2]
[312895767,1706434238436,-500.0,0.00022816,2]
[312895768,1706434238445,-800.0,0.00022816,2]
[312895769,1706434238455,-200.0,0.00022816,2]
[312895770,1706434238464,-160.01317636,0.00022823,2]
[312895771,1706434238474,-160.01317636,0.00022832,2]
[312895772,1706434238484,-160.01317636,0.00022842,2]
[312895773,1706434238494,-160.01317636,0.00022852,2]
[312895774,1706434238503,-160.01317636,0.00022861,2]
[312895775,1706434238512,-160.01317636,0.00022871,2]
[312895776,1706434238521,-160.01317636,0.00022881,2]
[312895777,1706434238531,-160.01317636,0.0002289,2]
[312895778,1706434238540,-1052.4692,0.00022899,2]
[312895779,1706434238549,-988.1419,0.000229,2]
[312895780,1706434238558,-5000.0,0.000229,2]
[312895781,1706434238566,-151.55764745,0.000229,2]
[312895782,1706434238575,-160.01317636,0.000229,2]
[312895783,1706434238584,-1118.38544097,0.000229,2]
[312895784,1706434238594,-339.32183682,0.000229,2]
[312895785,1706434238603,-1000.0,0.00022997,2]
[312895786,1706434238612,-1348.76942551,0.00022997,2]
[312895787,1706434238622,-2624.54653552,0.00022997,2]
[312895788,1706434238632,-2765.74700008,0.00022998,2]
[312895789,1706434238641,-4451.1855684,0.00022998,2]
[312895790,1706434238650,-2309.54511602,0.00022998,2]
[312895791,1706434238659,-1069.82214184,0.00022998,2]
[312895792,1706434238670,-2676.89996798,0.00022998,2]
[312895793,1706434238679,-1257.66975103,0.00022998,2]
[312895794,1706434238689,-31910.5235054,0.00022998,2]
[312895795,1706434238700,-7065.0882169,0.00022998,2]
[312895796,1706434238712,-1812.47964369,0.00022999,2]
[312895797,1706434238721,-10565.92802025,0.00022999,2]
[312895798,1706434238730,-1280.13108251,0.00022999,2]
[312895799,1706434238740,-4356.58302865,0.00022999,2]
[312895800,1706434238750,-2723.88726317,0.00022999,2]
[312895801,1706434238759,-3032.26696473,0.00022999,2]
[312895803,1706434238768,-442713.43542373,0.00022999,2]
[312895805,1706434238777,-845908.35069991,0.00023,2]
[312895807,1706434238787,-650788.8527419,0.00023,2]
[312895809,1706434238796,-1276122.8003216,0.00023,2]
[312895811,1706434238806,-65078.39271209,0.00023,2]
[312895813,1706434238815,-76898.9147892,0.00023001,2]
[312895815,1706434238824,-1457.0,0.00023014,2]
[312895817,1706434238833,-2131.0,0.00023014,2]
[312895819,1706434238842,-2217.43,0.0002316,2]
[312895821,1706434238851,-154.28,0.00023215,2]
[312895823,1706434238860,-178.6,0.00023345,2]
[312895826,1706434238871,-500.0,0.00023479,2]
[312895827,1706434238880,-500.0,0.00023541,2]
[312895830,1706434238889,-200.0,0.00023782,2]
[312895831,1706434238898,-171.03,0.0002403,2]
[312895833,1706434238908,-340.28,0.00024072,2]
[312895835,1706434238917,-500.0,0.00024142,2]
[312895837,1706434238926,-500.0,0.00024266,2]
[312895839,1706434238935,-403.89,0.00024294,2]
[312895841,1706434238944,-3620.32,0.00024384,2]
[312895843,1706434238953,-1808.59703623,0.00024632,2]
[312895845,1706434238963,-250.0,0.00024658,2]
[312895848,1706434238972,-1000.0,0.00024727,2]
[312895850,1706434238982,-200.0,0.00024749,2]
[312895852,1706434238991,-178.6,0.00024805,2]
[312895854,1706434239000,-500.0,0.00024805,2]
[312895856,1706434239009,-461.5,0.00024808,2]
[312895858,1706434239018,-4288.54662377,0.000249,2]
[312895860,1706434239027,-331.89,0.00024973,2]
[312895861,1706434239037,-500.0,0.0002499,2]
[312895864,1706434239046,-3019.5498213,0.00025,2]
[312895865,1706434239055,-550.0,0.00025,3]
[312895867,1706434239064,-323.51152453,0.00025278,2]
[312895869,1706434239073,-427.0,0.00025367,2]
[312895871,1706434239082,-235.35,0.00025367,2]
[312895873,1706434239091,-500.0,0.00025468,2]
[312895875,1706434239101,-1113.0,0.000255,2]
[312895877,1706434239110,-5143.0,0.000255,2]
[312895879,1706434239121,-1118.38544091,0.00025622,2]
[312895881,1706434239130,-500.0,0.00025715,2]
[312895883,1706434239139,-200.0,0.00025715,2]
[312895885,1706434239148,-208.0,0.00025815,2]
[312895887,1706434239157,-403.89,0.00025938,2]
[312895889,1706434239167,-461.5,0.00026048,2]
[312895891,1706434239176,-150.0,0.00026079,2]
[312895893,1706434239184,-500.0,0.00026131,2]
[312895895,1706434239193,-178.6,0.00026264,2]
[312895897,1706434239202,-24034.82225073,0.0002635,2]
[312895899,1706434239212,-1808.59703623,0.00026363,2]
[312895901,1706434239222,-200.0,0.00026608,2]
[312895903,1706434239231,-500.0,0.00026794,2]
[312895905,1706434239240,-600.0,0.00027,3]
[312895907,1706434239249,-500.0,0.00027164,2]
[312895909,1706434239259,-331.89,0.00027237,2]
[312895911,1706434239268,-461.5,0.00027289,2]
[312895913,1706434239278,-221.04,0.00027397,2]
[312895915,1706434239287,-156.47,0.00027397,2]
[312895917,1706434239297,-277.86,0.00027397,2]
[312895919,1706434239306,-63606.0,0.00027397,4]
[312895921,1706434239316,-500.0,0.00027457,2]
[312895923,1706434239325,-403.89,0.00027582,2]
[312895925,1706434239334,-200.0,0.00027647,2]
[312895927,1706434239343,-846.62,0.00027671,2]
[312895929,1706434239353,-1000.0,0.00027818,2]
[312895931,1706434239362,-13459.54473072,0.000279,2]
[312895933,1706434239372,-150.0,0.00027999,2]
[312895935,1706434239381,-159.80759569,0.00027999,2]
[312895937,1706434239391,-129623.76667981,0.00028,2]
[312895939,1706434239400,-200.86162821,0.00028,2]
[312895941,1706434239410,-1808.59703623,0.00028095,2]
[312895943,1706434239418,-500.0,0.0002812,2]
[312895945,1706434239428,-1118.38544091,0.00028345,4]
[312895947,1706434239437,-426.683,0.00028367,2]
[312895949,1706434239446,-461.5,0.00028529,2]
[312895951,1706434239455,-500.0,0.00028613,2]
[312895953,1706434239464,-208.0,0.00028631,2]
[312895955,1706434239473,-846.62,0.00028695,2]
[312895957,1706434239483,-500.0,0.00028783,2]
[312895959,1706434239492,-650.0,0.00029,3]
[312895961,1706434239501,-403.89,0.00029226,2]
[312895963,1706434239511,-500.0,0.00029446,2]
[312895965,1706434239520,-331.89,0.00029501,2]
[312895967,1706434239529,-200.0,0.0002958,2]
[312895969,1706434239538,-846.62,0.00029719,2]
[312895971,1706434239546,-461.5,0.00029769,2]
[312895973,1706434239555,-1808.59703623,0.00029826,2]
[312895975,1706434239564,-351.17,0.00029863,2]
[312895977,1706434239573,-155.0,0.0003,2]
[312895979,1706434239583,-9657.29212585,0.0003,2]
[312895981,1706434239592,-695.93335959,0.0003,2]
[312895983,1706434239601,-95247.38517422,0.0003,4]
[312895985,1706434239611,-2008.20242987,0.0003,2]
[312895987,1706434239620,-1591.780697,0.0003,2]
[312895989,1706434239630,-7929.299999,0.0003,2]
[312895991,1706434239639,-500.0,0.00030063,2]
[312895993,1706434239648,-208.0,0.00030088,9]
[312895995,1706434239657,-500.0,0.00030109,2]
[312895997,1706434239666,-155.08,0.00030137,2]
[312895999,1706434239675,-153.21533482,0.00030552,2]
[312896001,1706434239684,-169.21,0.0003064,2]
[312896003,1706434239694,-846.62,0.00030743,2]
[312896005,1706434239705,-500.0,0.00030772,2]
[312896007,1706434239715,-403.89,0.0003087,2]
[312896009,1706434239724,-1000.0,0.00030909,2]
[312896011,1706434239733,-700.0,0.00031,3]
[312896013,1706434239742,-1118.38544091,0.00031067,5]
[312896015,1706434239750,-500.0,0.00031435,2]
[312896017,1706434239759,-500.0,0.00031512,2]
[312896019,1706434239768,-200.0,0.00031512,2]
[312896021,1706434239777,-1808.59703623,0.00031558,3]
[312896023,1706434239787,-180.0,0.00031644,2]
[312896025,1706434239796,-4067.20005588,0.000317,2]
[312896027,1706434239804,-331.89,0.00031765,2]
[312896029,1706434239814,-846.62,0.00031767,2]
[312896031,1706434239823,-504.75134823,0.00031798,2]
[312896033,1706434239832,-319.17355421,0.00031798,4]
[312896035,1706434239841,-301.71999025,0.00031798,4]
[312896037,1706434239849,-320.63939579,0.00031798,4]
[312896039,1706434239858,-4293.38693856,0.00031798,4]
[312896041,1706434239868,-1757.18982796,0.00031798,4]
[312896043,1706434239877,-271.7033022,0.00031799,15]
[312896046,1706434239886,-997.5587706,0.00031799,4]
[312896049,1706434239895,-2197.1071963,0.00031799,2]
[312896051,1706434239905,-500.0,0.000318,2]
[312896053,1706434239914,-1099.55565881,0.000318,4]
[312896066,1706434240023,-1966.90599291,0.000318,2]
[312896068,1706434240032,-166.114238,0.000318,2]
[312896070,1706434240042,-200.0,0.000318,2]